[Event "9th Amsterdam Science Park B 2019"]
[Site "Amsterdam"]
[Date "2019.07.07"]
[Round "2.8"]
[White "Bakkes, Frits"]
[Black "Sprong, Ton"]
[Result "1-0"]
[ECO "B28"]
[WhiteElo "1638"]
[BlackElo "1747"]
[Annotator "NA"]
[PlyCount "59"]
[EventDate "2019.07.06"]
[EventType "swiss"]
[EventCountry "NED"]
[SourceTitle "playchess.com"]
[Source "ChessBase"]
[SourceQuality "1"]
[TimeControl "40/5400+30:1800+30"]

1. e4 {[%emt 0:00:00]} c5 {[%emt 0:00:00]} 2. Nf3 {[%emt 0:00:04]} a6 {[%emt 0:00:00]} 3. c3 {[%emt 0:00:05]} b5 {[%emt 0:00:00]} 4. d4 {[%emt 0:00:07]} cxd4 {[%emt 0:00:00]} 5. cxd4 {[%emt 0:00:08]} e6 {[%emt 0:00:00]} 6. Be2 {[%emt 0:00:19]} Bb7 {[%emt 0:00:00]} 7. d5 {[%emt 0:01:34]} Bb4+ {[%emt 0:02:09]} 8. Nc3 {[%emt 0:00:35]} Bxc3+ {[%emt 0:05:20]} 9. bxc3 {[%emt 0:00:06]} exd5 {[%emt 0:00:06]} 10. exd5 {[%emt 0:00:10]} h6 {[%emt 0:00:15]} 11. Qb3 {[%emt 0:01:21]} Nf6 {[%emt 0:04:50]} 12. O-O {[%emt 0:03:11]} Bxd5 {[%emt 0:02:21]} 13. c4 {[%emt 0:00:14]} Be6 {[%emt 0:01:58]} 14. Nd4 {[%emt 0:02:29]} bxc4 {[%emt 0:05:03]} 15. Nxe6 {[%emt 0:02:58]} fxe6 {[%emt 0:11:14]} 16. Qxc4 {[%emt 0:02:25]} O-O {[%emt 0:06:22]} 17. Ba3 {[%emt 0:02:21]} d5 {[%emt 0:06:16]} 18. Qb4 {[%emt 0:06:21]} Rf7 {[%emt 0:02:07]} 19. Rac1 {[%emt 0:01:47]} Ne4 {[%emt 0:05:50]} 20. Bh5 {[%emt 0:05:17]} Rd7 {[%emt 0:03:09]} 21. Bg4 {[%emt 0:00:23]} Kf7 {[%emt 0:03:05]} 22. Rfe1 {[%emt 0:05:53]} a5 {[%emt 0:03:16]} 23. Qb1 {[%emt 0:05:44]} Ra6 {[%emt 0:06:34]} 24. Rxe4 {[%emt 0:05:49]} dxe4 {[%emt 0:01:24]} 25. Qxe4 {[%emt 0:00:16]} Qf6 {[%emt 0:05:10]} 26. h4 {[%emt 0:07:08]} Qg6 {[%emt 0:06:41]} 27. Qf4+ {[%emt 0:01:46]} Qf6 {[%emt 0:02:17]} 28. Qxb8 {[%emt 0:00:21]} Raa7 {[%emt 0:00:29]} 29. Bh5+ {[%emt 0:01:13]} g6 {[%emt 0:00:14]} 30. Qf8# {[%emt 0:00:15]} 1-0

[Event "9th Amsterdam Science Park B 2019"]
[Site "Amsterdam"]
[Date "2019.07.07"]
[Round "2.9"]
[White "Spaan, Willem"]
[Black "Boons, Joris"]
[Result "0-1"]
[ECO "A52"]
[WhiteElo "1324"]
[BlackElo "1512"]
[Annotator "NA"]
[PlyCount "52"]
[EventDate "2019.07.06"]
[EventType "swiss"]
[EventCountry "NED"]
[SourceTitle "playchess.com"]
[Source "ChessBase"]
[SourceQuality "1"]
[TimeControl "40/5400+30:1800+30"]

1. d4 {[%emt 0:00:00]} Nf6 {[%emt 0:16:44]} 2. c4 {[%emt 0:01:16]} e5 {[%emt 0:04:21]} 3. dxe5 {[%emt 0:01:56]} Ng4 {[%emt 0:00:07]} 4. Nf3 Bc5 {[%emt 0:03:06]} 5. e3 {[%emt 0:04:48]} Nc6 {[%emt 0:00:07]} 6. Nd4 {[%emt 0:03:57]} Ngxe5 {[%emt 0:02:11]} 7. Be2 {[%emt 0:02:16]} d5 {[%emt 0:02:32]} 8. Nxc6 {[%emt 0:01:35]} bxc6 {[%emt 0:00:09]} 9. cxd5 {[%emt 0:00:23]} cxd5 {[%emt 0:00:42]} 10. O-O {[%emt 0:00:33]} h5 {[%emt 0:03:08]} 11. Nc3 {[%emt 0:05:01]} c6 {[%emt 0:05:50]} 12. Na4 {[%emt 0:05:18]} Be7 {[%emt 0:03:56]} 13. Qc2 {[%emt 0:01:16]} Ng4 {[%emt 0:01:08]} 14. h3 {[%emt 0:15:35]} Nf6 {[%emt 0:02:59]} 15. Nc5 {[%emt 0:01:59]} Qd6 {[%emt 0:02:53]} 16. Nd3 {[%emt 0:13:18]} O-O {[%emt 0:00:22]} 17. e4 {[%emt 0:02:55]} Nxe4 {[%emt 0:03:23]} 18. Bf4 {[%emt 0:01:21]} Qg6 {[%emt 0:11:33]} 19. Ne5 {[%emt 0:04:18]} Qf6 {[%emt 0:04:54]} 20. Nxc6 {[%emt 0:10:34]} Bc5 {[%emt 0:00:20]} 21. Bf3 {[%emt 0:09:40]} Bxf2+ {[%emt 0:03:44]} 22. Rxf2 Nxf2 23. Be5 Qe6 24. Bf4 Qf6 25. Be5 Nxh3+ 26. gxh3 Qg5+ 0-1

[Event "9th Amsterdam Science Park B 2019"]
[Site "Amsterdam"]
[Date "2019.07.08"]
[Round "3.1"]
[White "Sterrenburg, Kees"]
[Black "Emans, Job"]
[Result "1/2-1/2"]
[ECO "A08"]
[WhiteElo "1947"]
[BlackElo "1989"]
[Annotator "NA"]
[PlyCount "65"]
[EventDate "2019.07.06"]
[EventType "swiss"]
[EventCountry "NED"]
[SourceTitle "playchess.com"]
[Source "ChessBase"]
[SourceQuality "1"]
[TimeControl "40/5400+30:1800+30"]

1. Nf3 {[%emt 0:00:00]} Nf6 {[%emt 0:04:38]} 2. d3 {[%emt 0:00:00]} d5 {[%emt 0:00:47]} 3. Nbd2 {[%emt 0:00:31]} c5 {[%emt 0:01:31]} 4. e4 {[%emt 0:00:10]} e6 {[%emt 0:01:00]} 5. g3 {[%emt 0:01:05]} Nc6 {[%emt 0:00:42]} 6. Bg2 {[%emt 0:00:09]} Be7 {[%emt 0:01:01]} 7. O-O {[%emt 0:00:11]} O-O {[%emt 0:01:17]} 8. Re1 {[%emt 0:00:24]} b5 {[%emt 0:03:20]} 9. a4 {[%emt 0:08:26]} b4 {[%emt 0:02:56]} 10. b3 {[%emt 0:03:12]} Bb7 {[%emt 0:05:46]} 11. Bb2 {[%emt 0:00:26]} Qc7 {[%emt 0:04:48]} 12. Nh4 {[%emt 0:06:48]} Rad8 {[%emt 0:07:12]} 13. exd5 {[%emt 0:07:49]} Nxd5 {[%emt 0:04:29]} 14. Bxd5 {[%emt 0:09:50]} Rxd5 {[%emt 0:01:53]} 15. Ne4 {[%emt 0:00:36]} Bxh4 {[%emt 0:05:51]} 16. gxh4 {[%emt 0:00:35]} Qf4 {[%emt 0:01:25]} 17. Re3 {[%emt 0:04:16]} Nd4 {[%emt 0:03:11]} 18. Rg3 {[%emt 0:04:21]} Qxh4 {[%emt 0:13:53]} 19. Rg4 {[%emt 0:03:32]} Qe7 {[%emt 0:00:30]} 20. Rg3 {[%emt 0:03:52]} f5 {[%emt 0:03:53]} 21. c4 {[%emt 0:10:42]} Re5 {[%emt 0:03:12]} 22. Bxd4 {[%emt 0:06:22]} cxd4 {[%emt 0:00:14]} 23. Qh5 {[%emt 0:00:49]} Bxe4 {[%emt 0:04:27]} 24. Re1 {[%emt 0:01:17]} Qf6 {[%emt 0:07:50]} 25. f4 {[%emt 0:01:03]} Rc5 {[%emt 0:04:04]} 26. dxe4 {[%emt 0:00:23]} Rd8 {[%emt 0:00:51]} 27. e5 {[%emt 0:02:56]} Qe7 {[%emt 0:00:15]} 28. Rd1 {[%emt 0:02:06]} Rc7 {[%emt 0:03:48]} 29. Rdd3 {[%emt 0:01:43]} g6 {[%emt 0:02:56]} 30. Rg5 {[%emt 0:03:57]} Qc5 {[%emt 0:01:39]} 31. Rg2 {[%emt 0:02:52]} Rg7 {[%emt 0:01:02]} 32. Qh4 {[%emt 0:00:36]} Rdd7 {[%emt 0:01:08]} 33. Qe1 {[%emt 0:02:08]} 1/2-1/2

[Event "9th Amsterdam Science Park B 2019"]
[Site "Amsterdam"]
[Date "2019.07.08"]
[Round "3.2"]
[White "Van der Eyk, Dick"]
[Black "Aalten, Evert"]
[Result "1/2-1/2"]
[ECO "A36"]
[WhiteElo "1949"]
[BlackElo "1931"]
[Annotator "NA"]
[PlyCount "98"]
[EventDate "2019.07.06"]
[EventType "swiss"]
[EventCountry "NED"]
[SourceTitle "playchess.com"]
[Source "ChessBase"]
[SourceQuality "1"]
[TimeControl "40/5400+30:1800+30"]

1. c4 {[%emt 0:00:00]} c5 {[%emt 0:00:00]} 2. Nc3 {[%emt 0:00:00]} g6 {[%emt 0:00:20]} 3. g3 {[%emt 0:00:00]} Bg7 {[%emt 0:00:13]} 4. Bg2 {[%emt 0:00:00]} Nc6 {[%emt 0:00:26]} 5. e4 {[%emt 0:00:06]} a6 {[%emt 0:00:41]} 6. Nge2 {[%emt 0:00:09]} b5 {[%emt 0:00:23]} 7. cxb5 {[%emt 0:16:34]} axb5 {[%emt 0:00:15]} 8. O-O {[%emt 0:00:25]} Rb8 {[%emt 0:07:56]} 9. f4 {[%emt 0:11:44]} b4 {[%emt 0:11:34]} 10. Nd5 {[%emt 0:01:54]} e6 {[%emt 0:05:49]} 11. Ne3 {[%emt 0:00:52]} Ba6 {[%emt 0:07:14]} 12. d3 {[%emt 0:02:29]} d6 {[%emt 0:02:48]} 13. f5 {[%emt 0:12:37]} Nd4 {[%emt 0:08:01]} 14. Nf4 {[%emt 0:07:48]} Ne7 {[%emt 0:02:55]} 15. fxe6 {[%emt 0:20:34]} fxe6 {[%emt 0:01:16]} 16. Bh3 {[%emt 0:01:42]} Bc8 {[%emt 0:02:11]} 17. Ne2 {[%emt 0:03:14]} Nec6 {[%emt 0:00:36]} 18. Ng2 {[%emt 0:06:03]} Nxe2+ {[%emt 0:03:56]} 19. Qxe2 {[%emt 0:00:21]} Nd4 {[%emt 0:00:08]} 20. Qd1 {[%emt 0:01:05]} Rf8 {[%emt 0:01:43]} 21. Bf4 {[%emt 0:03:58]} Rf7 {[%emt 0:09:51]} 22. Kh1 {[%emt 0:07:01]} Kf8 {[%emt 0:03:39]} 23. Be3 {[%emt 0:00:11]} Rbb7 {[%emt 0:01:24]} 24. Nf4 {[%emt 0:00:57]} e5 {[%emt 0:00:28]} 25. Bxd4 {[%emt 0:00:08]} Bxh3 {[%emt 0:04:20]} 26. Nxh3 {[%emt 0:00:12]} cxd4 {[%emt 0:00:30]} 27. Qd2 {[%emt 0:00:40]} h6 {[%emt 0:02:16]} 28. Rac1 {[%emt 0:01:00]} Qd7 {[%emt 0:02:14]} 29. Rxf7+ {[%emt 0:00:49]} Kxf7 {[%emt 0:00:16]} 30. Ng1 {[%emt 0:00:45]} d5 {[%emt 0:01:13]} 31. Nf3 {[%emt 0:00:23]} Kg8 {[%emt 0:01:23]} 32. Qe2 {[%emt 0:00:36]} Kh7 {[%emt 0:00:53]} 33. Rc5 {[%emt 0:00:28]} Rb5 {[%emt 0:01:26]} 34. Rxd5 {[%emt 0:00:59]} Rxd5 {[%emt 0:00:12]} 35. exd5 {[%emt 0:00:08]} Qxd5 {[%emt 0:00:06]} 36. b3 {[%emt 0:00:07]} Qc6 {[%emt 0:04:13]} 37. Kg1 {[%emt 0:00:36]} Qc1+ {[%emt 0:00:58]} 38. Kg2 {[%emt 0:00:23]} Qc6 {[%emt 0:00:23]} 39. Kf2 {[%emt 0:00:30]} Qd5 {[%emt 0:01:05]} 40. Nd2 {[%emt 0:01:05]} Qh1 {[%emt 0:00:21]} 41. Nf3 {[%emt 0:30:33]} Qb1 {[%emt 0:37:06]} 42. Qd2 {[%emt 0:00:00]} Bf6 {[%emt 0:00:00]} 43. Ne1 {[%emt 0:00:00]} Bg5 {[%emt 0:00:00]} 44. Qc2 {[%emt 0:00:00]} Be3+ {[%emt 0:00:00]} 45. Ke2 {[%emt 0:00:00]} Qa1 {[%emt 0:00:00]} 46. Qc7+ {[%emt 0:00:00]} Kg8 {[%emt 0:00:00]} 47. Qd8+ {[%emt 0:00:00]} Kf7 {[%emt 0:00:00]} 48. Qd7+ {[%emt 0:00:00]} Kg8 {[%emt 0:00:00]} 49. Qe8+ {[%emt 0:00:00]} Kh7 {[%emt 0:00:00]} 1/2-1/2

[Event "9th Amsterdam Science Park B 2019"]
[Site "Amsterdam"]
[Date "2019.07.08"]
[Round "3.3"]
[White "Roemersma, Aad"]
[Black "Dambrink, Wouter"]
[Result "1/2-1/2"]
[ECO "D00"]
[WhiteElo "2029"]
[BlackElo "1931"]
[Annotator "NA"]
[PlyCount "107"]
[EventDate "2019.07.06"]
[EventType "swiss"]
[EventCountry "NED"]
[SourceTitle "playchess.com"]
[Source "ChessBase"]
[SourceQuality "1"]
[TimeControl "40/5400+30:1800+30"]

1. d4 {[%emt 0:00:00]} d5 {[%emt 0:00:53]} 2. Bf4 {[%emt 0:01:34]} Nf6 {[%emt 0:00:48]} 3. e3 {[%emt 0:00:34]} c5 {[%emt 0:00:38]} 4. c3 {[%emt 0:00:42]} Qb6 {[%emt 0:01:30]} 5. Qb3 {[%emt 0:03:08]} c4 {[%emt 0:00:41]} 6. Qxb6 {[%emt 0:01:23]} axb6 {[%emt 0:00:08]} 7. Nd2 {[%emt 0:00:28]} Bf5 {[%emt 0:04:23]} 8. f3 {[%emt 0:02:29]} b5 {[%emt 0:01:39]} 9. g4 {[%emt 0:02:38]} Bg6 {[%emt 0:02:21]} 10. h4 {[%emt 0:02:45]} h5 {[%emt 0:07:50]} 11. g5 {[%emt 0:00:45]} Nfd7 {[%emt 0:00:23]} 12. e4 {[%emt 0:04:44]} e6 {[%emt 0:03:06]} 13. Ne2 {[%emt 0:05:58]} Nc6 {[%emt 0:03:20]} 14. Bh3 {[%emt 0:01:57]} b4 {[%emt 0:02:55]} 15. O-O {[%emt 0:01:35]} b5 {[%emt 0:02:29]} 16. Be3 {[%emt 0:03:44]} Nb6 {[%emt 0:08:03]} 17. Nf4 {[%emt 0:03:44]} Nd8 {[%emt 0:20:38]} 18. Nxg6 {[%emt 0:07:27]} fxg6 {[%emt 0:00:54]} 19. cxb4 {[%emt 0:00:22]} Bxb4 {[%emt 0:03:00]} 20. a3 {[%emt 0:00:16]} Bd6 {[%emt 0:01:51]} 21. Rac1 {[%emt 0:04:08]} Ke7 {[%emt 0:06:31]} 22. Nb1 {[%emt 0:04:22]} Rf8 {[%emt 0:03:05]} 23. e5 {[%emt 0:05:20]} Bc7 {[%emt 0:01:46]} 24. Nc3 {[%emt 0:00:14]} b4 {[%emt 0:05:04]} 25. axb4 {[%emt 0:01:33]} Nc6 {[%emt 0:00:22]} 26. b5 {[%emt 0:01:34]} Nb4 {[%emt 0:00:22]} 27. f4 {[%emt 0:00:47]} Nd3 {[%emt 0:04:33]} 28. Rb1 {[%emt 0:01:16]} Ra5 {[%emt 0:07:07]} 29. Bd2 {[%emt 0:01:15]} Na4 {[%emt 0:03:44]} 30. Nxa4 {[%emt 0:17:00]} Rxa4 {[%emt 0:00:13]} 31. Rf3 {[%emt 0:00:05]} Ra2 {[%emt 0:01:26]} 32. Bf1 {[%emt 0:00:49]} Rb8 {[%emt 0:02:25]} 33. Bxd3 {[%emt 0:03:14]} cxd3 {[%emt 0:00:05]} 34. Rxd3 {[%emt 0:00:05]} Rxb5 {[%emt 0:00:19]} 35. Bc3 {[%emt 0:00:05]} Rb3 {[%emt 0:00:57]} 36. Rdd1 {[%emt 0:02:45]} Ba5 {[%emt 0:01:25]} 37. Rdc1 {[%emt 0:05:45]} Bxc3 {[%emt 0:00:47]} 38. bxc3 {[%emt 0:00:06]} Rxb1 {[%emt 0:00:40]} 39. Rxb1 {[%emt 0:00:07]} Rc2 {[%emt 0:00:16]} 40. Rb3 {[%emt 0:03:59]} Kf7 {[%emt 0:00:32]} 41. Rb7+ {[%emt 0:30:44]} Kf8 {[%emt 0:30:18]} 42. Rc7 {[%emt 0:03:09]} Rc1+ {[%emt 0:00:00]} 43. Kg2 {[%emt 0:00:00]} Rc2+ {[%emt 0:00:00]} 44. Kf3 {[%emt 0:00:00]} Rc1 {[%emt 0:00:00]} 45. Ke3 {[%emt 0:00:00]} Rh1 {[%emt 0:00:00]} 46. c4 {[%emt 0:00:00]} Rh3+ {[%emt 0:00:00]} 47. Kf2 {[%emt 0:00:00]} dxc4 {[%emt 0:00:00]} 48. Rxc4 {[%emt 0:00:00]} Rxh4 {[%emt 0:00:00]} 49. Kg3 {[%emt 0:00:00]} Rg4+ {[%emt 0:00:00]} 50. Kf3 {[%emt 0:00:00]} Rg1 {[%emt 0:00:00]} 51. Rc8+ {[%emt 0:00:00]} Kf7 {[%emt 0:00:00]} 52. Rc7+ {[%emt 0:00:00]} Kf8 {[%emt 0:00:00]} 53. Rc8+ {[%emt 0:00:00]} Kf7 {[%emt 0:00:00]} 54. Rc7+ {[%emt 0:00:00]} 1/2-1/2

[Event "9th Amsterdam Science Park B 2019"]
[Site "Amsterdam"]
[Date "2019.07.08"]
[Round "3.4"]
[White "Bollaart, Jeroen"]
[Black "Eveleens, Wim"]
[Result "1/2-1/2"]
[ECO "B01"]
[WhiteElo "1950"]
[BlackElo "2005"]
[Annotator "NA"]
[PlyCount "81"]
[EventDate "2019.07.06"]
[EventType "swiss"]
[EventCountry "NED"]
[SourceTitle "playchess.com"]
[Source "ChessBase"]
[SourceQuality "1"]
[TimeControl "40/5400+30:1800+30"]

1. e4 {[%emt 0:00:00]} d5 {[%emt 0:00:00]} 2. exd5 {[%emt 0:00:00]} Qxd5 {[%emt 0:00:00]} 3. Nf3 {[%emt 0:00:22]} Nf6 {[%emt 0:00:00]} 4. Nc3 {[%emt 0:01:12]} Qd6 {[%emt 0:00:30]} 5. d4 {[%emt 0:02:59]} c6 {[%emt 0:00:10]} 6. Bg5 {[%emt 0:03:54]} Bg4 {[%emt 0:03:20]} 7. Be2 {[%emt 0:05:45]} Nbd7 {[%emt 0:03:24]} 8. O-O {[%emt 0:03:43]} e6 {[%emt 0:00:13]} 9. Re1 {[%emt 0:04:13]} Be7 {[%emt 0:03:41]} 10. h3 {[%emt 0:08:33]} Bh5 {[%emt 0:06:37]} 11. Qd2 {[%emt 0:04:56]} Qc7 {[%emt 0:07:44]} 12. Ne5 {[%emt 0:11:02]} Bxe2 {[%emt 0:02:48]} 13. Rxe2 {[%emt 0:02:54]} Rd8 {[%emt 0:06:06]} 14. Qe3 {[%emt 0:07:53]} O-O {[%emt 0:23:14]} 15. Qf3 {[%emt 0:11:02]} Nxe5 {[%emt 0:13:55]} 16. dxe5 {[%emt 0:01:30]} Nd5 {[%emt 0:00:08]} 17. Bxe7 {[%emt 0:05:21]} Nxc3 {[%emt 0:00:48]} 18. Bxd8 {[%emt 0:03:01]} Nxe2+ {[%emt 0:00:08]} 19. Qxe2 {[%emt 0:00:08]} Rxd8 {[%emt 0:00:24]} 20. Rd1 {[%emt 0:00:44]} Rd5 {[%emt 0:01:28]} 21. Rxd5 {[%emt 0:01:32]} cxd5 {[%emt 0:00:06]} 22. Qb5 {[%emt 0:00:52]} h6 {[%emt 0:00:50]} 23. c3 {[%emt 0:03:30]} a6 {[%emt 0:07:58]} 24. Qe2 {[%emt 0:02:11]} b5 {[%emt 0:01:26]} 25. f4 {[%emt 0:01:28]} Kf8 {[%emt 0:02:04]} 26. Qd3 {[%emt 0:01:46]} g6 {[%emt 0:04:04]} 27. g4 {[%emt 0:00:34]} Qa5 {[%emt 0:00:54]} 28. a3 {[%emt 0:00:55]} Qa4 {[%emt 0:01:21]} 29. f5 {[%emt 0:02:51]} gxf5 {[%emt 0:01:36]} 30. gxf5 {[%emt 0:00:08]} Qf4 {[%emt 0:00:21]} 31. fxe6 {[%emt 0:00:33]} fxe6 {[%emt 0:00:04]} 32. Qg6 {[%emt 0:02:23]} Qg5+ {[%emt 0:02:34]} 33. Qxg5 {[%emt 0:00:14]} hxg5 {[%emt 0:00:01]} 34. Kf2 {[%emt 0:01:07]} Kg7 {[%emt 0:00:28]} 35. Kf3 {[%emt 0:00:44]} a5 {[%emt 0:00:49]} 36. b4 {[%emt 0:01:41]} a4 {[%emt 0:03:37]} 37. Kg3 {[%emt 0:00:20]} Kh6 {[%emt 0:00:19]} 38. Kf3 {[%emt 0:00:23]} Kh7 {[%emt 0:02:20]} 39. Kg3 {[%emt 0:00:22]} Kg6 {[%emt 0:00:15]} 40. Kg4 {[%emt 0:00:09]} Kh6 {[%emt 0:00:30]} 41. Kf3 {[%emt 0:30:19]} 1/2-1/2

[Event "9th Amsterdam Science Park B 2019"]
[Site "Amsterdam"]
[Date "2019.07.08"]
[Round "3.5"]
[White "Van de Kamp, Rob"]
[Black "Markus, John Raymond"]
[Result "1-0"]
[ECO "E67"]
[WhiteElo "1936"]
[BlackElo "1997"]
[Annotator "NA"]
[PlyCount "71"]
[EventDate "2019.07.06"]
[EventType "swiss"]
[EventCountry "NED"]
[SourceTitle "playchess.com"]
[Source "ChessBase"]
[SourceQuality "1"]
[TimeControl "40/5400+30:1800+30"]

1. d4 {[%emt 0:00:00]} g6 {[%emt 0:00:00]} 2. Nf3 {[%emt 0:00:55]} Bg7 {[%emt 0:00:00]} 3. g3 {[%emt 0:00:16]} d6 {[%emt 0:01:06]} 4. Bg2 {[%emt 0:00:57]} Nd7 {[%emt 0:01:32]} 5. c4 {[%emt 0:02:41]} Ngf6 {[%emt 0:00:57]} 6. Nc3 {[%emt 0:00:15]} O-O {[%emt 0:01:01]} 7. O-O {[%emt 0:00:13]} c5 {[%emt 0:02:34]} 8. e3 {[%emt 0:03:52]} a6 {[%emt 0:01:14]} 9. Qe2 {[%emt 0:03:04]} Rb8 {[%emt 0:01:07]} 10. h3 {[%emt 0:10:48]} Qc7 {[%emt 0:07:28]} 11. a4 {[%emt 0:02:07]} b6 {[%emt 0:01:00]} 12. d5 {[%emt 0:01:55]} Re8 {[%emt 0:07:32]} 13. Rd1 {[%emt 0:03:08]} Nf8 {[%emt 0:05:10]} 14. Qd3 {[%emt 0:09:35]} Bb7 {[%emt 0:08:53]} 15. e4 {[%emt 0:01:58]} Rbd8 {[%emt 0:00:40]} 16. Bf4 {[%emt 0:06:56]} Nh5 {[%emt 0:04:36]} 17. Be3 {[%emt 0:01:06]} e5 {[%emt 0:12:45]} 18. g4 {[%emt 0:13:41]} Nf6 {[%emt 0:05:37]} 19. Qd2 {[%emt 0:00:54]} Bc8 {[%emt 0:01:01]} 20. Bg5 {[%emt 0:05:40]} Bd7 {[%emt 0:01:09]} 21. Nh2 {[%emt 0:03:53]} Rb8 {[%emt 0:02:18]} 22. Bf1 {[%emt 0:01:49]} h5 {[%emt 0:05:16]} 23. Be2 {[%emt 0:00:40]} N8h7 {[%emt 0:01:57]} 24. Bh4 {[%emt 0:00:48]} hxg4 {[%emt 0:00:43]} 25. hxg4 {[%emt 0:01:06]} Qc8 {[%emt 0:02:44]} 26. g5 {[%emt 0:01:46]} Nh5 {[%emt 0:01:32]} 27. Bxh5 gxh5 {[%emt 0:00:40]} 28. Qe2 {[%emt 0:01:29]} Bg4 {[%emt 0:01:22]} 29. Nxg4 {[%emt 0:00:09]} hxg4 {[%emt 0:01:08]} 30. Kh2 {[%emt 0:02:45]} f6 {[%emt 0:05:44]} 31. g6 {[%emt 0:05:26]} Nf8 {[%emt 0:00:04]} 32. Rg1 {[%emt 0:00:07]} Nxg6 {[%emt 0:00:40]} 33. Rxg4 {[%emt 0:00:19]} Nf4 {[%emt 0:07:44]} 34. Qf3 {[%emt 0:00:15]} f5 {[%emt 0:02:15]} 35. exf5 {[%emt 0:01:40]} Qxf5 {[%emt 0:00:11]} 36. Ne4 {[%emt 0:00:01]} 1-0

[Event "9th Amsterdam Science Park B 2019"]
[Site "Amsterdam"]
[Date "2019.07.08"]
[Round "3.6"]
[White "De Winter, Arthur"]
[Black "Beugelink, Erik"]
[Result "1/2-1/2"]
[ECO "B19"]
[WhiteElo "1859"]
[BlackElo "1963"]
[Annotator "NA"]
[PlyCount "80"]
[EventDate "2019.07.06"]
[EventType "swiss"]
[EventCountry "NED"]
[SourceTitle "playchess.com"]
[Source "ChessBase"]
[SourceQuality "1"]
[TimeControl "40/5400+30:1800+30"]

1. e4 {[%emt 0:00:00]} c6 {[%emt 0:02:00]} 2. d4 {[%emt 0:00:00]} d5 {[%emt 0:00:08]} 3. Nc3 {[%emt 0:00:00]} dxe4 {[%emt 0:00:18]} 4. Nxe4 {[%emt 0:00:04]} Bf5 {[%emt 0:00:02]} 5. Ng3 {[%emt 0:00:11]} Bg6 {[%emt 0:00:05]} 6. h4 {[%emt 0:00:49]} h6 {[%emt 0:00:06]} 7. Nf3 {[%emt 0:00:42]} Nd7 {[%emt 0:00:05]} 8. h5 {[%emt 0:01:06]} Bh7 {[%emt 0:00:03]} 9. Bd3 {[%emt 0:00:08]} Bxd3 {[%emt 0:00:05]} 10. Qxd3 {[%emt 0:00:06]} e6 {[%emt 0:00:09]} 11. Bd2 {[%emt 0:04:08]} Ngf6 {[%emt 0:01:01]} 12. O-O-O {[%emt 0:00:40]} Bd6 {[%emt 0:00:15]} 13. Ne2 {[%emt 0:04:00]} Qc7 {[%emt 0:04:37]} 14. Kb1 {[%emt 0:02:29]} b5 {[%emt 0:03:33]} 15. Rdg1 {[%emt 0:04:43]} Ng4 {[%emt 0:03:59]} 16. Be1 {[%emt 0:10:16]} O-O {[%emt 0:07:35]} 17. Nd2 {[%emt 0:09:44]} c5 {[%emt 0:16:18]} 18. Qh3 {[%emt 0:07:28]} Ndf6 {[%emt 0:06:22]} 19. f3 {[%emt 0:12:58]} Ne3 {[%emt 0:00:11]} 20. Bf2 {[%emt 0:00:17]} Nfd5 {[%emt 0:08:35]} 21. Rc1 {[%emt 0:08:16]} cxd4 {[%emt 0:09:11]} 22. g4 {[%emt 0:04:45]} Nf4 {[%emt 0:24:29]} 23. Nxf4 {[%emt 0:00:07]} Bxf4 {[%emt 0:00:04]} 24. Ne4 {[%emt 0:04:22]} f5 {[%emt 0:03:08]} 25. gxf5 {[%emt 0:00:29]} exf5 {[%emt 0:00:24]} 26. Ng3 {[%emt 0:00:26]} Qf7 {[%emt 0:04:59]} 27. Ne2 {[%emt 0:01:03]} Qc7 {[%emt 0:03:18]} 28. Nxd4 {[%emt 0:01:04]} Rac8 {[%emt 0:00:27]} 29. Ne6 {[%emt 0:01:47]} Qe5 {[%emt 0:01:08]} 30. Nxf4 {[%emt 0:01:35]} Qxf4 {[%emt 0:00:04]} 31. Rhe1 {[%emt 0:01:23]} Nc4 {[%emt 0:00:15]} 32. Qg2 {[%emt 0:01:17]} Rc6 {[%emt 0:00:47]} 33. Bg3 {[%emt 0:03:57]} Qg5 {[%emt 0:00:56]} 34. f4 {[%emt 0:00:08]} Qf6 {[%emt 0:00:18]} 35. c3 {[%emt 0:00:44]} Ra6 {[%emt 0:00:36]} 36. Qd5+ {[%emt 0:00:20]} Kh7 {[%emt 0:00:22]} 37. Rcd1 {[%emt 0:02:12]} Rd6 {[%emt 0:00:30]} 38. Qc5 {[%emt 0:02:44]} Rc6 {[%emt 0:00:27]} 39. Qd5 {[%emt 0:00:22]} Rd6 {[%emt 0:00:36]} 40. Qc5 {[%emt 0:00:12]} Rc6 1/2-1/2

[Event "9th Amsterdam Science Park B 2019"]
[Site "Amsterdam"]
[Date "2019.07.08"]
[Round "3.7"]
[White "Loos, Jaap"]
[Black "Hofstee, Piet"]
[Result "1/2-1/2"]
[ECO "B50"]
[WhiteElo "1645"]
[BlackElo "1688"]
[Annotator "NA"]
[PlyCount "58"]
[EventDate "2019.07.06"]
[EventType "swiss"]
[EventCountry "NED"]
[SourceTitle "playchess.com"]
[Source "ChessBase"]
[SourceQuality "1"]
[TimeControl "40/5400+30:1800+30"]

1. e4 {[%emt 0:00:00]} c5 {[%emt 0:06:05]} 2. Nf3 {[%emt 0:00:00]} d6 {[%emt 0:00:17]} 3. d4 {[%emt 0:00:00]} Nf6 {[%emt 0:00:14]} 4. Bb5+ {[%emt 0:02:24]} Bd7 {[%emt 0:05:14]} 5. Bxd7+ {[%emt 0:00:25]} Nbxd7 {[%emt 0:00:53]} 6. Qe2 {[%emt 0:04:06]} cxd4 {[%emt 0:01:44]} 7. Nxd4 {[%emt 0:00:29]} g6 {[%emt 0:00:54]} 8. O-O {[%emt 0:00:20]} Bg7 {[%emt 0:00:05]} 9. c3 {[%emt 0:00:43]} O-O {[%emt 0:00:12]} 10. Be3 {[%emt 0:03:49]} a6 {[%emt 0:03:10]} 11. f3 {[%emt 0:01:35]} Rc8 {[%emt 0:00:50]} 12. Kh1 {[%emt 0:02:33]} Qa5 {[%emt 0:04:55]} 13. Nd2 {[%emt 0:01:14]} d5 {[%emt 0:10:32]} 14. N4b3 {[%emt 0:07:08]} Qc7 {[%emt 0:04:54]} 15. Rad1 {[%emt 0:07:19]} dxe4 {[%emt 0:05:56]} 16. fxe4 {[%emt 0:04:26]} Nh5 {[%emt 0:03:01]} 17. Rf3 {[%emt 0:07:29]} Be5 {[%emt 0:06:31]} 18. Rh3 {[%emt 0:09:22]} Nf4 {[%emt 0:01:35]} 19. Bxf4 {[%emt 0:00:52]} Bxf4 {[%emt 0:00:09]} 20. Nf3 {[%emt 0:04:31]} Rfd8 {[%emt 0:03:57]} 21. g3 {[%emt 0:01:03]} Be5 {[%emt 0:01:26]} 22. Nbd4 {[%emt 0:10:19]} Bg7 {[%emt 0:11:33]} 23. Rf1 {[%emt 0:01:19]} e5 {[%emt 0:05:56]} 24. Ng5 {[%emt 0:00:29]} exd4 {[%emt 0:01:49]} 25. Rxf7 {[%emt 0:03:51]} Qe5 {[%emt 0:08:45]} 26. Rxh7 {[%emt 0:07:21]} Qxg5 {[%emt 0:04:16]} 27. Rhxg7+ {[%emt 0:01:48]} Kh8 {[%emt 0:00:09]} 28. Rh7+ {[%emt 0:00:23]} Kg8 {[%emt 0:00:08]} 29. Rhg7+ {[%emt 0:00:11]} Kh8 {[%emt 0:00:08]} 1/2-1/2